[Event "Titled Tuesday Blitz February 14 Early 2023"]
[White "Tanenbaum, Zachary"]
[Black "Demchenko, Anton"]
[WhiteFideId "2060850"]
[BlackFideId "4160258"]
[WhiteElo "2261"]
[BlackElo "2623"]
[Result "1-0"]
[Round "06"]
[TimeControl "180+2"]
[Date "2023.02.15"]
[WhiteClock "0:00:03"]
[BlackClock "0:00:05"]

1. e4 {[%clk 0:03:00]}  e5 {[%clk 0:02:59]} 2. Nf3 {[%clk 0:03:00]}  Nc6 {[%clk 0:03:00]} 3. Bc4 {[%clk 0:03:01]}  Nf6 {[%clk 0:02:59]} 4. d3 {[%clk 0:03:01]}  h6 {[%clk 0:02:58]} 5. Nbd2 {[%clk 0:02:58]}  d6 {[%clk 0:02:54]} 6. a4 {[%clk 0:02:58]}  g6 {[%clk 0:02:54]} 7. c3 {[%clk 0:02:58]}  Bg7 {[%clk 0:02:54]} 8. d4 {[%clk 0:02:55]}  exd4 {[%clk 0:02:41]} 9. cxd4 {[%clk 0:02:54]}  d5 {[%clk 0:02:36]} 10. exd5 {[%clk 0:02:51]}  Nxd5 {[%clk 0:02:37]} 11. O-O {[%clk 0:02:28]}  O-O {[%clk 0:02:36]} 12. Ne4 {[%clk 0:02:28]}  Nb6 {[%clk 0:02:28]} 13. Bb3 {[%clk 0:02:25]}  Bg4 {[%clk 0:02:24]} 14. a5 {[%clk 0:02:19]}  Bxf3 {[%clk 0:02:20]} 15. Qxf3 {[%clk 0:02:07]}  Nxd4 {[%clk 0:02:20]} 16. Qd3 {[%clk 0:02:07]}  Nd7 {[%clk 0:02:14]} 17. Bf4 {[%clk 0:01:48]}  Ne5 {[%clk 0:01:37]} 18. Bxe5 {[%clk 0:01:47]}  Bxe5 {[%clk 0:01:38]} 19. Ng3 {[%clk 0:01:17]}  Nxb3 {[%clk 0:01:14]} 20. Qxb3 {[%clk 0:01:16]}  b6 {[%clk 0:01:13]} 21. Rfd1 {[%clk 0:01:15]}  Qe7 {[%clk 0:01:05]} 22. Re1 {[%clk 0:01:03]}  Rae8 {[%clk 0:01:03]} 23. a6 {[%clk 0:00:54]}  Qf6 {[%clk 0:00:56]} 24. Rab1 {[%clk 0:00:41]}  Bd4 {[%clk 0:00:51]} 25. Ne4 {[%clk 0:00:38]}  Qf5 {[%clk 0:00:47]} 26. Qd3 {[%clk 0:00:36]}  c5 {[%clk 0:00:46]} 27. b4 {[%clk 0:00:32]}  Rd8 {[%clk 0:00:42]} 28. Qc4 {[%clk 0:00:29]}  Rfe8 {[%clk 0:00:40]} 29. Qe2 {[%clk 0:00:17]}  Rxe4 {[%clk 0:00:13]} 30. Qxe4 {[%clk 0:00:17]}  Bxf2+ {[%clk 0:00:14]} 31. Kh1 {[%clk 0:00:15]}  Bxe1 {[%clk 0:00:12]} 32. Qxe1 {[%clk 0:00:16]}  cxb4 {[%clk 0:00:11]} 33. Rxb4 {[%clk 0:00:13]}  Qa5 {[%clk 0:00:09]} 34. h3 {[%clk 0:00:11]}  Qxa6 {[%clk 0:00:08]} 35. Qh4 {[%clk 0:00:10]}  Qf1+ {[%clk 0:00:06]} 36. Kh2 {[%clk 0:00:11]}  Rd6 {[%clk 0:00:05]} 37. Qxh6 {[%clk 0:00:08]}  Qf6 {[%clk 0:00:05]} 38. Rh4 {[%clk 0:00:07]}  Qe5+ {[%clk 0:00:05]} 39. Kg1 {[%clk 0:00:03]} 1-0


[Site "https://www.chess.com"]

[Event "Titled Tuesday Blitz February 14 Early 2023"]
[White "Chigaev, Maksim"]
[Black "Ajay, Karthikeyan"]
[WhiteFideId "4108116"]
[BlackFideId "35011685"]
[WhiteElo "2628"]
[BlackElo "2454"]
[Result "1-0"]
[Round "06"]
[TimeControl "180+2"]
[Date "2023.02.15"]
[WhiteClock "0:00:10"]
[BlackClock "0:00:02"]

1. e4 {[%clk 0:03:00]}  e5 {[%clk 0:03:00]} 2. Bc4 {[%clk 0:03:00]}  Nf6 {[%clk 0:02:59]} 3. d3 {[%clk 0:03:00]}  c6 {[%clk 0:02:59]} 4. Nf3 {[%clk 0:03:00]}  d5 {[%clk 0:02:59]} 5. Bb3 {[%clk 0:03:00]}  Bd6 {[%clk 0:02:57]} 6. Nc3 {[%clk 0:03:00]}  d4 {[%clk 0:02:52]} 7. Ne2 {[%clk 0:03:00]}  a5 {[%clk 0:02:53]} 8. a4 {[%clk 0:02:52]}  Na6 {[%clk 0:02:47]} 9. O-O {[%clk 0:02:47]}  Nc5 {[%clk 0:02:46]} 10. Bc4 {[%clk 0:02:40]}  O-O {[%clk 0:02:37]} 11. h3 {[%clk 0:02:31]}  Be6 {[%clk 0:02:36]} 12. Bxe6 {[%clk 0:02:25]}  Nxe6 {[%clk 0:02:16]} 13. Nd2 {[%clk 0:02:21]}  b5 {[%clk 0:02:14]} 14. Nf3 {[%clk 0:02:03]}  h6 {[%clk 0:02:04]} 15. Ng3 {[%clk 0:01:59]}  Kh7 {[%clk 0:01:59]} 16. Nf5 {[%clk 0:01:59]}  Ng8 {[%clk 0:01:55]} 17. c3 {[%clk 0:01:48]}  g6 {[%clk 0:01:45]} 18. Nxd6 {[%clk 0:01:46]}  Qxd6 {[%clk 0:01:46]} 19. cxd4 {[%clk 0:01:39]}  Nxd4 {[%clk 0:01:47]} 20. Nxd4 {[%clk 0:01:40]}  Qxd4 {[%clk 0:01:45]} 21. Qc2 {[%clk 0:01:40]}  Rfc8 {[%clk 0:01:39]} 22. Be3 {[%clk 0:01:40]}  Qd7 {[%clk 0:01:29]} 23. f4 {[%clk 0:01:34]}  exf4 {[%clk 0:01:08]} 24. Rxf4 {[%clk 0:01:35]}  Qe6 {[%clk 0:01:08]} 25. Raf1 {[%clk 0:01:18]}  f6 {[%clk 0:01:08]} 26. Bd4 {[%clk 0:01:19]}  Rf8 {[%clk 0:01:06]} 27. Bc5 {[%clk 0:01:14]}  Rf7 {[%clk 0:01:04]} 28. d4 {[%clk 0:01:12]}  bxa4 {[%clk 0:01:01]} 29. Qxa4 {[%clk 0:01:12]}  g5 {[%clk 0:00:57]} 30. R4f3 {[%clk 0:00:48]}  Qxe4 {[%clk 0:00:57]} 31. b4 {[%clk 0:00:48]}  Rg7 {[%clk 0:00:18]} 32. bxa5 {[%clk 0:00:40]}  g4 {[%clk 0:00:18]} 33. hxg4 {[%clk 0:00:40]}  Rxg4 {[%clk 0:00:18]} 34. a6 {[%clk 0:00:29]}  Qe2 {[%clk 0:00:17]} 35. R3f2 {[%clk 0:00:26]}  Rxa6 {[%clk 0:00:17]} 36. Qb3 {[%clk 0:00:18]}  Qb5 {[%clk 0:00:06]} 37. Qc2+ {[%clk 0:00:19]}  Rg6 {[%clk 0:00:04]} 38. Rb1 {[%clk 0:00:09]}  Qa4 {[%clk 0:00:03]} 39. Rb7+ {[%clk 0:00:09]}  Kh8 {[%clk 0:00:02]} 40. Qxg6 {[%clk 0:00:09]}  Qd1+ {[%clk 0:00:02]} 41. Rf1 {[%clk 0:00:10]} 1-0


[Site "https://www.chess.com"]

[Event "Titled Tuesday Blitz February 14 Early 2023"]
[White "Dragnev, Valentin"]
[Black "Dardha, Daniel"]
[WhiteFideId "1634852"]
[BlackFideId "240990"]
[WhiteElo "2593"]
[BlackElo "2631"]
[Result "0-1"]
[Round "06"]
[TimeControl "180+2"]
[Date "2023.02.15"]
[WhiteClock "0:00:02"]
[BlackClock "0:00:04"]

1. d4 {[%clk 0:03:00]}  e6 {[%clk 0:02:40]} 2. Nf3 {[%clk 0:03:01]}  d5 {[%clk 0:02:38]} 3. Bf4 {[%clk 0:03:00]}  c5 {[%clk 0:02:31]} 4. e3 {[%clk 0:03:00]}  Nf6 {[%clk 0:02:23]} 5. Nbd2 {[%clk 0:03:00]}  Nc6 {[%clk 0:02:09]} 6. c3 {[%clk 0:02:59]}  cxd4 {[%clk 0:01:57]} 7. exd4 {[%clk 0:02:58]}  Nh5 {[%clk 0:01:57]} 8. Be3 {[%clk 0:02:52]}  Bd6 {[%clk 0:01:54]} 9. Bd3 {[%clk 0:02:49]}  Nf4 {[%clk 0:01:53]} 10. Bxf4 {[%clk 0:02:49]}  Bxf4 {[%clk 0:01:54]} 11. O-O {[%clk 0:02:49]}  O-O {[%clk 0:01:50]} 12. Re1 {[%clk 0:02:50]}  Bd7 {[%clk 0:01:44]} 13. Nb3 {[%clk 0:02:44]}  Bd6 {[%clk 0:01:42]} 14. Ne5 {[%clk 0:02:43]}  Bxe5 {[%clk 0:01:24]} 15. dxe5 {[%clk 0:02:44]}  f5 {[%clk 0:01:24]} 16. Bb5 {[%clk 0:02:34]}  Ne7 {[%clk 0:01:18]} 17. Qd3 {[%clk 0:02:31]}  f4 {[%clk 0:00:56]} 18. Nc5 {[%clk 0:02:27]}  Bxb5 {[%clk 0:00:52]} 19. Qxb5 {[%clk 0:02:28]}  Qc8 {[%clk 0:00:53]} 20. Nb3 {[%clk 0:02:12]}  f3 {[%clk 0:00:49]} 21. g3 {[%clk 0:02:11]}  Nc6 {[%clk 0:00:48]} 22. Rad1 {[%clk 0:02:04]}  Rf5 {[%clk 0:00:43]} 23. Nd4 {[%clk 0:01:48]}  Nxd4 {[%clk 0:00:30]} 24. cxd4 {[%clk 0:01:40]}  a6 {[%clk 0:00:23]} 25. Qd3 {[%clk 0:01:40]}  Qd7 {[%clk 0:00:20]} 26. Rc1 {[%clk 0:01:36]}  Rc8 {[%clk 0:00:16]} 27. h4 {[%clk 0:01:11]}  h6 {[%clk 0:00:12]} 28. Qd2 {[%clk 0:01:05]}  Rff8 {[%clk 0:00:08]} 29. a3 {[%clk 0:00:55]}  Qf7 {[%clk 0:00:07]} 30. Qd3 {[%clk 0:00:45]}  Qh5 {[%clk 0:00:06]} 31. Kh2 {[%clk 0:00:24]}  Rce8 {[%clk 0:00:05]} 32. Qf1 {[%clk 0:00:23]}  Qg4 {[%clk 0:00:04]} 33. Red1 {[%clk 0:00:21]}  Rc8 {[%clk 0:00:04]} 34. Qh3 {[%clk 0:00:17]}  h5 {[%clk 0:00:02]} 35. Qxg4 {[%clk 0:00:13]}  hxg4 {[%clk 0:00:02]} 36. Kg1 {[%clk 0:00:12]}  Kf7 {[%clk 0:00:02]} 37. Kf1 {[%clk 0:00:10]}  Rc4 {[%clk 0:00:03]} 38. b3 {[%clk 0:00:10]}  Rc6 {[%clk 0:00:02]} 39. Ke1 {[%clk 0:00:09]}  Rfc8 {[%clk 0:00:02]} 40. Kd2 {[%clk 0:00:09]}  Kg6 {[%clk 0:00:02]} 41. Rxc6 {[%clk 0:00:05]}  Rxc6 {[%clk 0:00:02]} 42. Rh1 {[%clk 0:00:05]}  Kf5 {[%clk 0:00:01]} 43. Kd3 {[%clk 0:00:05]}  Rb6 {[%clk 0:00:02]} 44. b4 {[%clk 0:00:05]}  a5 {[%clk 0:00:02]} 45. Kc3 {[%clk 0:00:05]}  axb4+ {[%clk 0:00:02]} 46. axb4 {[%clk 0:00:04]}  Ra6 {[%clk 0:00:03]} 47. Kb3 {[%clk 0:00:03]}  Ke4 {[%clk 0:00:03]} 48. Rd1 {[%clk 0:00:02]}  Rc6 {[%clk 0:00:04]} 0-1


[Site "https://www.chess.com"]

[Event "Titled Tuesday Blitz February 14 Early 2023"]
[White "Livaic, Leon"]
[Black "Carnicelli, Valerio"]
[WhiteFideId "14531534"]
[BlackFideId "856185"]
[WhiteElo "2579"]
[BlackElo "2370"]
[Result "1-0"]
[Round "06"]
[TimeControl "180+2"]
[Date "2023.02.15"]
[WhiteClock "0:00:05"]
[BlackClock "0:00:45"]

1. e4 {[%clk 0:03:00]}  e6 {[%clk 0:03:00]} 2. d3 {[%clk 0:03:00]}  d5 {[%clk 0:03:00]} 3. Nd2 {[%clk 0:03:00]}  Nf6 {[%clk 0:03:00]} 4. Ngf3 {[%clk 0:03:01]}  dxe4 {[%clk 0:02:59]} 5. dxe4 {[%clk 0:03:00]}  Bc5 {[%clk 0:02:59]} 6. Bd3 {[%clk 0:02:57]}  O-O {[%clk 0:02:58]} 7. O-O {[%clk 0:02:57]}  c6 {[%clk 0:02:50]} 8. e5 {[%clk 0:02:56]}  Nd5 {[%clk 0:02:45]} 9. Bxh7+ {[%clk 0:02:32]}  Kxh7 {[%clk 0:02:44]} 10. Ne4 {[%clk 0:02:33]}  Be7 {[%clk 0:02:26]} 11. Nfg5+ {[%clk 0:02:32]}  Bxg5 {[%clk 0:02:15]} 12. Nxg5+ {[%clk 0:02:32]}  Kg6 {[%clk 0:02:15]} 13. Qd3+ {[%clk 0:01:59]}  f5 {[%clk 0:02:14]} 14. Qg3 {[%clk 0:01:59]}  f4 {[%clk 0:02:14]} 15. Bxf4 {[%clk 0:01:43]}  Nxf4 {[%clk 0:02:14]} 16. Nxe6+ {[%clk 0:01:42]}  Kf5 {[%clk 0:01:56]} 17. Nxf4 {[%clk 0:00:53]}  Qg5 {[%clk 0:01:45]} 18. Qd3+ {[%clk 0:00:44]}  Kxf4 {[%clk 0:01:33]} 19. Qf3+ {[%clk 0:00:34]}  Kxe5 {[%clk 0:01:31]} 20. Rfe1+ {[%clk 0:00:34]}  Kd6 {[%clk 0:01:28]} 21. Qxf8+ {[%clk 0:00:34]}  Kc7 {[%clk 0:01:28]} 22. Rad1 {[%clk 0:00:28]}  Qf6 {[%clk 0:01:00]} 23. Re7+ {[%clk 0:00:15]}  Kb6 {[%clk 0:00:58]} 24. Qxf6 {[%clk 0:00:11]}  gxf6 {[%clk 0:00:59]} 25. Rd8 {[%clk 0:00:09]}  Bf5 {[%clk 0:00:59]} 26. Ree8 {[%clk 0:00:09]}  Kc7 {[%clk 0:00:59]} 27. c3 {[%clk 0:00:07]}  b5 {[%clk 0:00:56]} 28. h4 {[%clk 0:00:07]}  a5 {[%clk 0:00:55]} 29. h5 {[%clk 0:00:07]}  b4 {[%clk 0:00:55]} 30. h6 {[%clk 0:00:07]}  bxc3 {[%clk 0:00:52]} 31. bxc3 {[%clk 0:00:08]}  a4 {[%clk 0:00:52]} 32. g4 {[%clk 0:00:08]}  Bg6 {[%clk 0:00:51]} 33. Rg8 {[%clk 0:00:07]}  Bc2 {[%clk 0:00:50]} 34. f4 {[%clk 0:00:06]}  a3 {[%clk 0:00:47]} 35. f5 {[%clk 0:00:06]}  Bb3 {[%clk 0:00:47]} 36. h7 {[%clk 0:00:04]}  Bxa2 {[%clk 0:00:47]} 37. Rc8+ {[%clk 0:00:04]}  Kb7 {[%clk 0:00:44]} 38. Rxb8+ {[%clk 0:00:04]}  Rxb8 {[%clk 0:00:45]} 39. Rxb8+ {[%clk 0:00:05]} 1-0


[Site "https://www.chess.com"]

[Event "Titled Tuesday Blitz February 14 Early 2023"]
[White "Manukyan, Sargis A."]
[Black "Kovalenko, Igor"]
[WhiteFideId "13303970"]
[BlackFideId "14117908"]
[WhiteElo "2158"]
[BlackElo "2674"]
[Result "0-1"]
[Round "06"]
[TimeControl "180+2"]
[Date "2023.02.15"]
[WhiteClock "0:00:40"]
[BlackClock "0:02:14"]

1. d4 {[%clk 0:03:00]}  Nf6 {[%clk 0:02:59]} 2. c4 {[%clk 0:03:00]}  e6 {[%clk 0:03:00]} 3. Nc3 {[%clk 0:02:59]}  Bb4 {[%clk 0:02:59]} 4. a3 {[%clk 0:03:00]}  Bxc3+ {[%clk 0:02:59]} 5. bxc3 {[%clk 0:03:00]}  d6 {[%clk 0:03:00]} 6. e3 {[%clk 0:03:00]}  c5 {[%clk 0:03:00]} 7. Bd3 {[%clk 0:03:00]}  Nc6 {[%clk 0:03:00]} 8. Ne2 {[%clk 0:03:01]}  b6 {[%clk 0:03:00]} 9. e4 {[%clk 0:02:53]}  Bb7 {[%clk 0:02:59]} 10. O-O {[%clk 0:02:52]}  Qc7 {[%clk 0:02:59]} 11. f4 {[%clk 0:02:36]}  O-O-O {[%clk 0:02:58]} 12. a4 {[%clk 0:02:35]}  Na5 {[%clk 0:02:56]} 13. Ng3 {[%clk 0:02:34]}  h5 {[%clk 0:02:53]} 14. Qe2 {[%clk 0:02:19]}  h4 {[%clk 0:02:45]} 15. Nh1 {[%clk 0:02:19]}  h3 {[%clk 0:02:45]} 16. g3 {[%clk 0:02:16]}  Nd7 {[%clk 0:02:29]} 17. Nf2 {[%clk 0:02:15]}  g6 {[%clk 0:02:28]} 18. Be3 {[%clk 0:02:15]}  f5 {[%clk 0:02:27]} 19. d5 {[%clk 0:02:10]}  Rde8 {[%clk 0:02:25]} 20. dxe6 {[%clk 0:02:05]}  Rxe6 {[%clk 0:02:24]} 21. Qc2 {[%clk 0:01:54]}  Qc6 {[%clk 0:02:23]} 22. Rfd1 {[%clk 0:01:48]}  Nf6 {[%clk 0:02:22]} 23. Re1 {[%clk 0:01:15]}  Kc7 {[%clk 0:02:21]} 24. Rad1 {[%clk 0:01:14]}  Rhe8 {[%clk 0:02:21]} 25. Bf1 {[%clk 0:01:07]}  Nxe4 {[%clk 0:02:20]} 26. Bxh3 {[%clk 0:01:02]}  Nxf2 {[%clk 0:02:15]} 27. Kxf2 {[%clk 0:00:41]}  Qf3+ {[%clk 0:02:15]} 28. Kg1 {[%clk 0:00:40]}  Qh1+ {[%clk 0:02:14]} 0-1


[Site "https://www.chess.com"]

[Event "Titled Tuesday Blitz February 14 Early 2023"]
[White "Sharapov, Evgeny"]
[Black "Gharibyan, Mamikon"]
[WhiteFideId "14103133"]
[BlackFideId "13308300"]
[WhiteElo "2375"]
[BlackElo "2500"]
[Result "0-1"]
[Round "06"]
[TimeControl "180+2"]
[Date "2023.02.15"]
[WhiteClock "0:00:03"]
[BlackClock "0:00:03"]

1. e4 {[%clk 0:02:59]}  g6 {[%clk 0:02:59]} 2. d4 {[%clk 0:02:59]}  d6 {[%clk 0:03:00]} 3. Nc3 {[%clk 0:02:59]}  a6 {[%clk 0:03:00]} 4. f4 {[%clk 0:02:59]}  b5 {[%clk 0:02:58]} 5. Nf3 {[%clk 0:02:59]}  Bb7 {[%clk 0:02:58]} 6. Bd3 {[%clk 0:02:55]}  b4 {[%clk 0:02:55]} 7. Ne2 {[%clk 0:02:47]}  Nd7 {[%clk 0:02:40]} 8. O-O {[%clk 0:02:46]}  c5 {[%clk 0:02:38]} 9. a3 {[%clk 0:02:34]}  bxa3 {[%clk 0:02:28]} 10. Rxa3 {[%clk 0:02:33]}  cxd4 {[%clk 0:02:28]} 11. Nexd4 {[%clk 0:02:33]}  Bg7 {[%clk 0:02:28]} 12. Qe2 {[%clk 0:02:26]}  Nc5 {[%clk 0:02:21]} 13. e5 {[%clk 0:02:17]}  Nh6 {[%clk 0:02:17]} 14. f5 {[%clk 0:02:03]}  Nxd3 {[%clk 0:01:51]} 15. Rxd3 {[%clk 0:02:02]}  Nxf5 {[%clk 0:01:35]} 16. Nxf5 {[%clk 0:02:00]}  gxf5 {[%clk 0:01:36]} 17. exd6 {[%clk 0:01:56]}  Be4 {[%clk 0:01:37]} 18. d7+ {[%clk 0:01:47]}  Kf8 {[%clk 0:01:36]} 19. Rdd1 {[%clk 0:01:45]}  Ra7 {[%clk 0:01:23]} 20. Ng5 {[%clk 0:01:43]}  Rxd7 {[%clk 0:01:16]} 21. Rxd7 {[%clk 0:01:25]}  Qxd7 {[%clk 0:01:17]} 22. Nxe4 {[%clk 0:01:20]}  fxe4 {[%clk 0:01:15]} 23. Qxe4 {[%clk 0:01:20]}  Qd4+ {[%clk 0:01:12]} 24. Qxd4 {[%clk 0:01:20]}  Bxd4+ {[%clk 0:01:13]} 25. Kh1 {[%clk 0:01:20]}  Kg7 {[%clk 0:01:11]} 26. c3 {[%clk 0:01:20]}  Bf6 {[%clk 0:01:10]} 27. Rd1 {[%clk 0:01:15]}  Rb8 {[%clk 0:01:10]} 28. Kg1 {[%clk 0:01:15]}  a5 {[%clk 0:01:05]} 29. Kf2 {[%clk 0:01:14]}  a4 {[%clk 0:01:05]} 30. Ke2 {[%clk 0:01:14]}  Be5 {[%clk 0:01:02]} 31. h3 {[%clk 0:01:10]}  Kf6 {[%clk 0:00:51]} 32. Rd5 {[%clk 0:01:06]}  a3 {[%clk 0:00:47]} 33. bxa3 {[%clk 0:01:04]}  Bxc3 {[%clk 0:00:47]} 34. Rd3 {[%clk 0:00:50]}  Be5 {[%clk 0:00:38]} 35. a4 {[%clk 0:00:48]}  Rb1 {[%clk 0:00:26]} 36. Bd2 {[%clk 0:00:47]}  Ra1 {[%clk 0:00:26]} 37. a5 {[%clk 0:00:47]}  Ke6 {[%clk 0:00:23]} 38. Re3 {[%clk 0:00:44]}  Ra2 {[%clk 0:00:19]} 39. Kd1 {[%clk 0:00:40]}  Kd5 {[%clk 0:00:18]} 40. Rd3+ {[%clk 0:00:36]}  Kc4 {[%clk 0:00:18]} 41. Rd7 {[%clk 0:00:34]}  Bd6 {[%clk 0:00:17]} 42. Rb7 {[%clk 0:00:25]}  f5 {[%clk 0:00:12]} 43. Kc1 {[%clk 0:00:17]}  f4 {[%clk 0:00:09]} 44. Rb6 {[%clk 0:00:11]}  Bc5 {[%clk 0:00:08]} 45. Rc6 {[%clk 0:00:09]}  e5 {[%clk 0:00:06]} 46. a6 {[%clk 0:00:06]}  Kb5 {[%clk 0:00:05]} 47. Re6 {[%clk 0:00:04]}  Bd4 {[%clk 0:00:05]} 48. Rd6 {[%clk 0:00:03]}  Kc4 {[%clk 0:00:03]} 0-1


[Site "https://www.chess.com"]

[Event "Titled Tuesday Blitz February 14 Early 2023"]
[White "Shapiro, Viktor"]
[Black "Makarian, Rudik"]
[WhiteFideId "4175700"]
[BlackFideId "44105681"]
[WhiteElo "2192"]
[BlackElo "2545"]
[Result "0-1"]
[Round "06"]
[TimeControl "180+2"]
[Date "2023.02.15"]
[WhiteClock "0:00:03"]
[BlackClock "0:00:12"]

1. c4 {[%clk 0:03:00]}  Nf6 {[%clk 0:02:56]} 2. Nc3 {[%clk 0:03:01]}  g6 {[%clk 0:02:56]} 3. g3 {[%clk 0:03:01]}  Bg7 {[%clk 0:02:56]} 4. Bg2 {[%clk 0:03:02]}  c5 {[%clk 0:02:56]} 5. Nf3 {[%clk 0:03:02]}  Nc6 {[%clk 0:02:57]} 6. d3 {[%clk 0:03:03]}  d6 {[%clk 0:02:56]} 7. a3 {[%clk 0:03:03]}  Qd7 {[%clk 0:02:55]} 8. Rb1 {[%clk 0:03:02]}  b6 {[%clk 0:02:56]} 9. b4 {[%clk 0:03:02]}  Bb7 {[%clk 0:02:57]} 10. O-O {[%clk 0:03:00]}  O-O {[%clk 0:02:54]} 11. h3 {[%clk 0:02:58]}  Rfe8 {[%clk 0:02:43]} 12. e4 {[%clk 0:02:58]}  h6 {[%clk 0:02:36]} 13. Be3 {[%clk 0:02:53]}  Nh7 {[%clk 0:02:28]} 14. Qc1 {[%clk 0:02:51]}  h5 {[%clk 0:02:25]} 15. Ne2 {[%clk 0:02:36]}  Nf8 {[%clk 0:02:22]} 16. Rd1 {[%clk 0:02:24]}  Ne6 {[%clk 0:02:22]} 17. b5 {[%clk 0:02:17]}  Ncd4 {[%clk 0:02:21]} 18. Nexd4 {[%clk 0:02:17]}  cxd4 {[%clk 0:02:19]} 19. Bd2 {[%clk 0:02:15]}  Nc5 {[%clk 0:02:19]} 20. Bb4 {[%clk 0:02:15]}  Qc7 {[%clk 0:02:11]} 21. Qc2 {[%clk 0:02:13]}  a5 {[%clk 0:01:58]} 22. bxa6 {[%clk 0:02:10]}  Rxa6 {[%clk 0:01:57]} 23. Re1 {[%clk 0:01:52]}  Rea8 {[%clk 0:01:55]} 24. Nd2 {[%clk 0:01:36]}  Bc6 {[%clk 0:01:53]} 25. Bf1 {[%clk 0:01:11]}  h4 {[%clk 0:01:47]} 26. Nf3 {[%clk 0:01:07]}  hxg3 {[%clk 0:01:47]} 27. fxg3 {[%clk 0:01:07]}  Rxa3 {[%clk 0:01:22]} 28. Bxa3 {[%clk 0:01:07]}  Rxa3 {[%clk 0:01:23]} 29. Qb2 {[%clk 0:00:53]}  Rb3 {[%clk 0:01:20]} 30. Qc2 {[%clk 0:00:52]}  Rc3 {[%clk 0:01:19]} 31. Qd1 {[%clk 0:00:51]}  Ba4 {[%clk 0:01:13]} 32. Qd2 {[%clk 0:00:47]}  Rc2 {[%clk 0:00:58]} 33. Qf4 {[%clk 0:00:40]}  Rc3 {[%clk 0:00:51]} 34. e5 {[%clk 0:00:29]}  Nxd3 {[%clk 0:00:27]} 35. Bxd3 {[%clk 0:00:29]}  Rxd3 {[%clk 0:00:28]} 36. e6 {[%clk 0:00:25]}  f5 {[%clk 0:00:25]} 37. Nh4 {[%clk 0:00:18]}  Be8 {[%clk 0:00:16]} 38. Nxf5 {[%clk 0:00:11]}  gxf5 {[%clk 0:00:15]} 39. Qxf5 {[%clk 0:00:11]}  Rxg3+ {[%clk 0:00:14]} 40. Kh2 {[%clk 0:00:12]}  d5 {[%clk 0:00:15]} 41. Kh1 {[%clk 0:00:07]}  dxc4 {[%clk 0:00:15]} 42. Re4 {[%clk 0:00:03]}  Bg6 {[%clk 0:00:12]} 0-1


[Site "https://www.chess.com"]